bitfinex-derivatives/quotes_ETHF0:USTF0_20250317
["timestamp","ask_amount","ask_price","bid_price","bid_amount"]
[1742177884731,4.8148706,1902.5,1902.4,17.26102232]
[1742177884931,5.8662006,1902.5,1902.4,17.26102232]
[1742177885434,4.5392006,1902.5,1902.4,17.26102232]
[1742177886234,5.9382006,1902.5,1902.4,17.26102232]
[1742177886533,4.8868706,1902.5,1902.4,17.26102232]
[1742177891738,5.9382006,1902.5,1902.4,16.20964232]
[1742177891936,5.9382006,1902.5,1902.4,14.86984232]
[1742177892340,5.9382006,1902.5,1902.4,14.2078]
[1742177894640,5.9382006,1902.5,1902.4,15.25918]
[1742177894848,4.8868706,1902.5,1902.4,15.25918]
[1742177895147,5.9382006,1902.5,1902.4,16.67898]
[1742177895338,5.9382006,1902.5,1902.4,15.6276]
[1742177896348,5.9382006,1902.5,1902.4,14.2078]
[1742177896547,5.9382006,1902.5,1902.4,15.25918]
[1742177896939,4.8868706,1902.5,1902.4,15.25918]
[1742177901447,4.8868706,1902.5,1902.4,15.92187417]
[1742177902244,3.4878706,1902.5,1902.4,15.92187417]
[1742177902648,0.0718706,1902.5,1902.4,15.92187417]
[1742177903342,34.98648,1903.0,1902.8,1.05111]
[1742177903343,29.151,1903.0,1902.8,1.05111]
[1742177903544,33.9641,1903.0,1902.9,2.37301]
[1742177903745,33.9641,1903.0,1902.9,3.06511]
[1742177904045,4.7449,1903.2,1902.9,42.814]
[1742177904250,4.0856,1903.2,1903.1,1.051]
[1742177904547,4.0856,1903.2,1903.0,2.37291]
[1742177904742,4.0856,1903.2,1903.1,1.051]
[1742177904944,4.0856,1903.2,1903.1,41.851]
[1742177905347,5.3978,1903.2,1903.1,41.851]
[1742177905943,6.44874,1903.2,1903.1,41.851]
[1742177906149,5.3978,1903.2,1903.1,41.851]
[1742177907449,5.3968,1903.2,1903.1,41.851]
[1742177907662,6.44774,1903.2,1903.1,40.8]
[1742177907853,9.65554,1903.2,1903.1,40.8]
[1742177909654,12.15554,1903.2,1903.1,40.8]
[1742177909845,1.05112,1902.9,1902.7,1.05119]
[1742177910045,5.4909,1902.8,1902.7,1.3232]
[1742177910245,5.4909,1902.8,1902.7,2.37442]
[1742177910853,5.4909,1902.8,1902.7,43.17442]
[1742177911244,3.415,1902.8,1902.7,43.17442]
[1742177911440,5.4774,1903.0,1902.9,1.05106]
[1742177912151,5.4774,1903.0,1902.9,3.12226]
[1742177912653,6.52845,1903.0,1902.9,2.0712]
[1742177913152,1.05116,1902.8,1902.7,40.8]
[1742177915056,1.3534,1902.9,1902.7,42.1333]
[1742177915251,1.3534,1902.9,1902.8,1.05116]
[1742177915455,1.3534,1902.9,1902.8,3.07066]
[1742177915851,4.124,1903.0,1902.9,1.05111]
[1742177916157,2.0703,1903.0,1902.9,2.38441]
[1742177916351,5.4853,1903.0,1902.9,2.38441]
[1742177917049,3.415,1903.0,1902.9,2.38441]
[1742177917247,4.46605,1903.0,1902.9,1.3333]
[1742177917656,5.89195,1903.0,1902.9,2.38441]
[1742177918957,4.8409,1903.0,1902.9,2.38441]
[1742177919149,3.415,1903.0,1902.9,2.38441]
[1742177919349,6.6155,1903.1,1903.0,1.05105]
[1742177919551,6.6155,1903.1,1903.0,2.41735]
[1742177919758,6.6155,1903.1,1903.0,1.3663]
[1742177920556,6.6155,1903.1,1903.0,2.41735]
[1742177921948,5.5645,1903.1,1903.0,2.41735]
[1742177922152,30.19798,1903.2,1903.1,1.051]
[1742177922153,29.147,1903.2,1903.1,1.051]
[1742177922457,5.5171,1903.3,1903.2,1.05094]
[1742177922651,0.00787815,1903.4,1903.3,1.05089]
[1742177922844,0.00787815,1903.4,1903.3,2.47409]
[1742177922845,3.42287815,1903.4,1903.3,2.47409]
[1742177923050,3.42287815,1903.4,1903.3,43.27409]
[1742177923253,4.84597815,1903.4,1903.3,43.27409]
[1742177923458,5.89680815,1903.4,1903.3,43.27409]
[1742177926558,4.84597815,1903.4,1903.3,43.27409]
[1742177928665,5.89680815,1903.4,1903.3,43.27409]
[1742177929665,4.84597815,1903.4,1903.3,43.27409]
[1742177934067,5.89680815,1903.4,1903.3,43.27409]
[1742177934768,5.89680815,1903.4,1903.3,40.8]
[1742177937167,5.89580815,1903.4,1903.3,40.8]
[1742177938867,4.84497815,1903.4,1903.3,43.17399]
[1742177939263,5.89580815,1903.4,1903.3,42.1231]
[1742177939463,5.89580815,1903.4,1903.3,43.17399]
[1742177940662,4.84497815,1903.4,1903.3,43.17399]
[1742177940865,3.414,1903.5,1903.4,1.05083]
[1742177941066,4.4648,1903.5,1903.4,1.319]
[1742177941767,1.75164,1903.6,1903.4,2.36983]
[1742177941967,1.05078,1903.5,1903.4,1.319]
[1742177942272,6.50738,1903.5,1903.4,1.319]
[1742177943073,6.50738,1903.5,1903.4,2.36983]
[1742177943273,5.4566,1903.5,1903.4,2.36983]
[1742177944168,6.50738,1903.5,1903.4,2.36983]
[1742177946171,5.4566,1903.5,1903.4,2.36983]
[1742177947076,4.7409,1903.5,1903.4,2.36983]
[1742177947269,5.79168,1903.5,1903.4,3.07803]
[1742177947774,4.7409,1903.5,1903.4,3.07803]
[1742177948273,5.79168,1903.5,1903.4,3.07803]
[1742177948675,4.7409,1903.5,1903.4,3.07803]
[1742177949275,5.79168,1903.5,1903.4,3.07803]
[1742177949668,4.7409,1903.5,1903.4,3.07803]
[1742177950874,3.414,1903.5,1903.4,3.07803]
[1742177951071,3.09868815,1903.7,1903.6,1.05072]
[1742177951269,4.07777815,1903.7,1903.6,1.05072]
[1742177951576,0.66477815,1903.7,1903.6,1.05072]
[1742177951767,4.07777815,1903.7,1903.6,1.05072]
[1742177951968,0.66477815,1903.7,1903.6,1.05072]
[1742177952165,5.87,1904.1,1903.6,1.05072]
[1742177952166,1.05054,1904.0,1903.9,1.05055]
[1742177952371,1.70988,1904.1,1904.0,1.4288]
[1742177952569,5.12288,1904.1,1904.0,1.4288]
[1742177952767,5.12288,1904.1,1904.0,42.2288]
[1742177953565,0.6594,1904.1,1904.0,43.2793]
[1742177953773,4.0724,1904.1,1904.0,43.2793]
[1742177956468,4.0724,1904.1,1904.0,42.2288]
[1742177956671,4.0724,1904.1,1904.0,43.2793]
[1742177957176,5.12284,1904.1,1904.0,43.2793]
[1742177957374,4.0724,1904.1,1904.0,43.2793]
[1742177959278,0.00787815,1904.2,1904.1,1.05044]
[1742177959575,0.00787815,1904.2,1904.1,3.02684]
[1742177960672,29.139,1904.4,1904.3,1.05033]
[1742177960874,32.552,1904.4,1904.3,1.05033]
[1742177961275,32.552,1904.4,1904.2,2.37164]
[1742177961276,34.26068,1904.4,1904.2,2.37164]
[1742177961481,33.2104,1904.4,1904.3,1.05033]
[1742177961680,33.2104,1904.4,1904.3,2.37163]
[1742177962777,34.26068,1904.4,1904.3,1.3213]
[1742177964379,1.05039,1904.2,1904.1,0.6551]
[1742177964582,1.05039,1904.2,1904.1,2.0467]
[1742177965369,0.7163,1904.3,1904.1,2.0467]
[1742177965574,1.76663,1904.3,1904.2,1.3688]
[1742177966178,0.7163,1904.3,1904.2,2.41919]
[1742177966573,33.2104,1904.4,1904.3,1.05033]
[1742177966777,34.26068,1904.4,1904.3,1.3688]
[1742177966981,33.2104,1904.4,1904.3,2.41913]
[1742177967482,34.26068,1904.4,1904.3,1.3688]
[1742177967689,33.2104,1904.4,1904.3,2.41913]
[1742177967980,34.26068,1904.4,1904.3,2.41913]
[1742177968280,34.26068,1904.4,1904.3,1.3688]
[1742177968481,33.2104,1904.4,1904.3,2.41913]
[1742177970080,34.26068,1904.4,1904.3,2.41913]
[1742177970281,34.5729,1904.4,1904.3,2.41913]
[1742177971476,29.139,1904.4,1904.3,2.41913]
[1742177971683,32.551,1904.4,1904.3,2.41913]
[1742177972479,33.9877,1904.4,1904.3,2.41913]
[1742177973079,1.4367,1904.4,1904.3,43.21913]
[1742177975885,3.41887815,1904.5,1904.4,1.05028]
[1742177976092,3.41887815,1904.5,1904.4,3.08778]
[1742177976286,0.00787815,1904.5,1904.4,3.08778]
[1742177976588,0.6717,1904.8,1904.7,1.05011]
[1742177976791,2.1098,1904.8,1904.7,1.05011]
[1742177977183,2.1098,1904.8,1904.7,43.88761]
[1742177978392,3.15986,1904.8,1904.7,43.88761]
[1742177979787,2.1098,1904.8,1904.7,43.88761]
[1742177981388,2.1098,1904.8,1904.7,43.16611]
[1742177985997,3.15986,1904.8,1904.7,43.16611]
[1742177986294,2.1098,1904.8,1904.7,43.16611]
[1742177987287,3.15986,1904.8,1904.7,40.8]
[1742177987480,7.04166,1904.8,1904.7,40.8]
[1742177987696,9.54166,1904.8,1904.7,40.8]
[1742177987989,15.50114166,1904.8,1904.3,0.00787815]
[1742177988192,1.05028,1904.4,1904.3,0.00787815]
[1742177988382,4.46028,1904.4,1904.3,0.00787815]
[1742177988786,3.41,1904.4,1904.3,1.05820815]
[1742177988988,4.7499,1904.4,1904.3,43.30880815]
[1742177989495,4.7499,1904.4,1904.3,43.98250815]
[1742177989891,3.41,1904.4,1904.3,43.98250815]
[1742177990392,2.0243,1904.5,1904.4,1.05028]
[1742177990594,0.672,1904.5,1904.4,2.36038]
[1742177990897,1.72222,1904.5,1904.4,2.36038]
[1742177991196,0.672,1904.5,1904.4,2.36038]
[1742177991495,1.72222,1904.5,1904.4,1.3101]
[1742177991688,1.72222,1904.5,1904.4,2.36038]
[1742177991888,2.39562,1904.5,1904.4,1.3101]
[1742177992792,5.80562,1904.5,1904.4,2.36038]
[1742177993094,4.082,1904.5,1904.4,2.36038]
[1742177993483,3.41,1904.5,1904.4,2.36038]
[1742177993687,3.41,1904.5,1904.4,46.36818]
[1742177993887,5.17055,1904.7,1904.6,1.05017]
[1742177994497,1.05017,1904.6,1904.5,2.40728]
[1742177996991,4.1204,1904.7,1904.6,1.05017]
[1742177996992,5.17055,1904.7,1904.6,1.05017]
[1742177997190,5.17055,1904.7,1904.6,2.36607]
[1742177998798,0.7104,1904.7,1904.6,2.36607]
[1742177999095,4.1204,1904.7,1904.6,2.36607]
[1742178000894,0.00787815,1904.9,1904.8,1.05006]
[1742178001290,0.00787815,1904.9,1904.8,4.25786]
[1742178001488,0.00787815,1904.9,1904.8,5.61846]
[1742178002501,0.00787815,1904.9,1904.8,5.65906]
[1742178002703,0.00787815,1904.9,1904.8,46.45906]
[1742178002900,0.00787815,1904.9,1904.8,46.41846]
[1742178003205,1.05787815,1904.9,1904.8,47.07783694]
[1742178003793,1.05787815,1904.9,1904.8,46.41846]
[1742178004107,1.05787815,1904.9,1904.8,45.3684]
[1742178005505,1.05787815,1904.9,1904.8,46.41846]
[1742178006305,0.00787815,1904.9,1904.8,46.41846]
[1742178006601,1.05787815,1904.9,1904.8,46.41846]
[1742178007003,1.05787815,1904.9,1904.8,45.3684]
[1742178008205,1.05787815,1904.9,1904.8,40.8]
[1742178010007,2.39397815,1904.9,1904.8,40.8]
[1742178017609,2.39397815,1904.9,1904.8,42.1995]
[1742178019115,2.39397815,1904.9,1904.8,40.8]
[1742178019415,5.60177815,1904.9,1904.8,40.8]
[1742178024629,8.10177815,1904.9,1904.8,40.8]
[1742178024832,1.05028,1904.4,1904.3,0.00787815]
[1742178025131,4.45928,1904.4,1904.3,0.00787815]
[1742178025526,5.78418,1904.4,1904.3,0.00787815]
[1742178025731,5.78418,1904.4,1904.3,40.80787815]
[1742178032231,3.2078,1904.5,1904.4,1.05028]
[1742178032437,6.6178,1904.5,1904.4,3.13308]
[1742178033039,6.6178,1904.5,1904.4,43.93308]
[1742178035843,1.05018,1904.6,1904.5,1.05022]
[1742178036044,4.46018,1904.6,1904.5,2.46642]
[1742178037844,3.41,1904.6,1904.5,2.46642]
[1742178038044,3.21567815,1904.9,1904.7,1.05008]
[1742178038246,4.26572815,1904.9,1904.8,2.0766]
[1742178038541,4.46792815,1904.9,1904.8,2.0766]
[1742178038746,1.05792815,1904.9,1904.8,3.12666]
[1742178038937,4.46792815,1904.9,1904.8,3.12666]
[1742178039538,4.46792815,1904.9,1904.8,2.0766]
[1742178040548,1.05017,1904.6,1904.5,3.2078]
[1742178040734,4.45917,1904.6,1904.5,3.9205]
[1742178041846,4.45917,1904.6,1904.5,5.3631]
[1742178042446,3.409,1904.6,1904.5,6.41332]
[1742178042648,4.45917,1904.6,1904.5,6.41332]
[1742178042849,4.45917,1904.6,1904.5,5.3631]
[1742178044445,4.45917,1904.6,1904.5,2.1553]
[1742178044648,4.45917,1904.6,1904.5,1.4426]
[1742178044838,1.05022,1904.5,1904.4,40.8]
[1742178045040,7.04582,1904.5,1904.4,40.8]
[1742178045545,9.54582,1904.5,1904.4,40.8]
[1742178046448,15.41582,1904.5,1904.4,40.8]
[1742178047044,15.50532307,1904.5,1904.4,40.8]
[1742178048246,15.41582,1904.5,1904.4,40.8]
[1742178048437,16.37886174,1904.5,1904.4,40.8]
[1742178049149,1.05028,1904.4,1904.3,0.00787815]
[1742178049344,1.05055,1903.9,1903.8,0.659]
[1742178049539,4.45955,1903.9,1903.8,1.4356]
[1742178049742,1.05066,1903.7,1903.6,0.659]
[1742178049945,1.05066,1903.7,1903.6,2.0946]
[1742178050146,1.05066,1903.7,1903.6,42.8946]
[1742178050541,2.42126,1903.7,1903.6,42.8946]
[1742178051145,2.42126,1903.7,1903.6,40.8]
[1742178051349,4.92126,1903.7,1903.6,40.8]
[1742178051549,10.79126,1903.7,1903.6,40.8]
[1742178051850,10.88079997,1903.7,1903.6,40.8]
[1742178052238,14.29079997,1903.7,1903.6,40.8]
[1742178052442,12.47889997,1903.7,1903.6,40.8]
[1742178053546,14.97889997,1903.7,1903.6,40.8]
[1742178055743,14.97890374,1903.7,1903.6,40.8]
[1742178056838,12.47890374,1903.7,1903.6,40.8]
[1742178057244,12.38936,1903.7,1903.6,40.8]
[1742178057654,8.97936,1903.7,1903.6,40.8]
[1742178057851,12.39036,1903.7,1903.6,40.8]
[1742178058053,12.39036,1903.7,1903.6,42.8541]
[1742178059652,5.87,1903.7,1903.6,42.8541]
[1742178059850,3.411,1903.7,1903.6,42.8541]
[1742178060549,0.00787815,1903.8,1903.6,43.90478]
[1742178060754,0.00787815,1903.8,1903.7,2.40086]
[1742178060951,2.32797815,1903.8,1903.7,2.40086]
[1742178061154,2.32797815,1903.8,1903.7,2.44946]
[1742178063358,2.27897815,1903.8,1903.7,4.94946]
[1742178063551,0.00787815,1903.9,1903.8,1.05061]
[1742178063751,29.123,1904.1,1904.0,1.0505]
[1742178063952,3.411,1904.2,1904.1,1.05044]
[1742178064160,3.411,1904.2,1904.1,41.85044]
[1742178064458,1.05039,1904.2,1904.1,41.85044]
[1742178064951,4.46924815,1904.3,1904.2,1.05039]
[1742178065150,4.46924815,1904.3,1904.2,2.49659]
[1742178065347,4.46924815,1904.3,1904.2,1.4462]
[1742178065551,3.41887815,1904.3,1904.2,2.49659]
[1742178065951,4.46920815,1904.3,1904.2,1.4462]
[1742178066560,4.46920815,1904.3,1904.2,2.49659]
[1742178066561,3.41887815,1904.3,1904.2,2.49659]
[1742178067158,0.00787815,1904.3,1904.2,2.49659]
[1742178068357,4.46026,1904.5,1904.3,1.05029]
[1742178068659,4.46026,1904.5,1904.4,1.402]
[1742178068857,3.41,1904.5,1904.4,2.45228]
[1742178069561,4.46022,1904.5,1904.4,42.202]
[1742178069761,4.46022,1904.5,1904.4,43.25228]
[1742178070150,4.46022,1904.5,1904.4,42.202]
[1742178070353,3.41,1904.5,1904.4,43.25228]
[1742178073060,0.0052521,1904.6,1904.5,1.05022]
[1742178073259,3.4152521,1904.6,1904.5,3.12962]
[1742178074057,4.4654221,1904.6,1904.5,2.0794]
[1742178074457,4.4654221,1904.6,1904.5,1.402]
[1742178074660,5.8263221,1904.6,1904.5,1.402]
[1742178079757,1.05022,1904.5,1904.4,40.8]
[1742178079961,3.04922,1904.5,1904.4,40.8]
[1742178086962,12.12702,1904.5,1903.8,3.2078]
[1742178087167,2.626,1904.2,1903.8,3.2078]
[1742178087368,11.40662,1904.1,1903.5,3.21567815]
[1742178087566,4.80737,1904.0,1903.6,1.4266]
[1742178087769,1.05062,1903.8,1903.6,2.47729]
[1742178088073,1.05055,1903.9,1903.7,45.4344]
[1742178088277,1.05055,1903.9,1903.8,1.4266]
[1742178088964,4.45955,1903.9,1903.8,1.4266]
[1742178092269,1.05061,1903.8,1903.7,44.0078]
[1742178092475,1.77751,1903.8,1903.7,44.0078]
[1742178092676,1.77751,1903.8,1903.7,40.8]
[1742178094376,36.77451,1903.8,1903.7,40.8]
[1742178094582,39.27451,1903.8,1903.7,40.8]
[1742178094881,39.68799236,1903.8,1903.7,40.8]
[1742178095178,39.77752538,1903.8,1903.7,40.8]
[1742178095569,1.05072,1903.6,1903.5,0.00787815]
[1742178095775,1.05093,1903.3,1903.1,2.38429]
[1742178095978,1.05093,1903.3,1903.2,1.3333]
[1742178096279,4.45993,1903.3,1903.2,1.3333]
[1742178096672,4.45993,1903.3,1903.2,42.1333]
[1742178098984,5.14243,1903.3,1903.2,42.1333]
[1742178100192,6.52883,1903.3,1903.2,42.1333]
[1742178101993,3.21567815,1903.4,1903.3,1.05089]
[1742178102199,6.62567815,1903.4,1903.3,1.3681]
[1742178102898,6.62567815,1903.4,1903.3,42.1681]
[1742178103395,7.67650815,1903.4,1903.3,42.1681]
[1742178104391,1.05870815,1903.4,1903.3,42.1681]
[1742178104592,4.46870815,1903.4,1903.3,42.1681]
[1742178105498,3.41787815,1903.4,1903.3,43.21899]
[1742178105803,3.41787815,1903.4,1903.3,42.1681]
[1742178105804,4.46870815,1903.4,1903.3,42.1681]
[1742178106604,0.00787815,1903.4,1903.3,43.21899]
[1742178106802,3.41787815,1903.4,1903.3,43.21899]
[1742178107505,3.41787815,1903.4,1903.3,46.42679]
[1742178108003,0.00787815,1903.4,1903.3,46.42679]
[1742178108591,1.05068,1903.7,1903.6,1.05072]
[1742178108797,4.46068,1903.7,1903.6,1.05072]
[1742178109505,4.46068,1903.7,1903.6,1.365]
[1742178109805,4.46068,1903.7,1903.6,2.41572]
[1742178112309,1.05068,1903.7,1903.6,2.41572]
[1742178112609,30.1828721,1903.8,1903.7,1.05066]
[1742178112808,33.5928721,1903.8,1903.7,2.40016]
[1742178114211,34.9281721,1903.8,1903.7,2.40016]
[1742178114511,34.9281721,1903.8,1903.7,1.3495]
[1742178114898,34.9281721,1903.8,1903.7,2.40016]
[1742178115506,33.8775521,1903.8,1903.7,2.40016]
[1742178115915,32.5422521,1903.8,1903.7,2.40016]
[1742178116808,29.1322521,1903.8,1903.7,5.60796]
[1742178117015,1.73377,1904.3,1903.9,1.05055]
[1742178117212,0.6834,1904.3,1904.2,1.05039]
[1742178117407,1.05041,1904.2,1904.1,1.05044]
[1742178117715,1.05041,1904.2,1904.1,2.48004]
[1742178117914,2.50421,1904.2,1904.1,43.28004]
[1742178118815,1.4538,1904.2,1904.1,43.28004]
[1742178119917,5.71199,1904.2,1904.1,40.8]
[1742178122220,9.12199,1904.2,1904.1,40.8]
[1742178124513,1.05044,1904.1,1904.0,0.00787815]
[1742178124707,4.7644,1904.1,1903.6,2.38701]
[1742178124912,1.05061,1903.8,1903.7,1.3363]
[1742178125117,4.46061,1903.8,1903.7,1.3363]
[1742178125312,4.46061,1903.8,1903.7,42.1363]
[1742178125811,5.90111,1903.8,1903.7,42.1363]
[1742178128119,6.56701,1903.8,1903.7,42.1363]
[1742178128722,5.5164,1903.8,1903.7,42.1363]
[1742178128924,6.56701,1903.8,1903.7,42.1363]
[1742178131718,5.90111,1903.8,1903.7,42.1363]
[1742178132022,2.62627,1904.0,1903.9,1.05055]
[1742178132023,0.7165,1904.0,1903.9,1.05055]
[1742178132219,1.05048,1904.1,1904.0,1.0505]
[1742178132415,4.46048,1904.1,1904.0,1.0505]
[1742178132817,3.41,1904.1,1903.8,1.4061]
[1742178133015,1.05055,1903.9,1903.8,2.4567]
[1742178133623,1.05055,1903.9,1903.8,1.4061]
[1742178133820,2.40784,1904.0,1903.8,2.45671]
[1742178134216,2.40784,1904.0,1903.9,1.3901]
[1742178134618,2.40784,1904.0,1903.9,2.44065]
[1742178137031,1.3573,1904.0,1903.9,2.44065]
[1742178137328,0.00787815,1904.2,1904.1,1.05044]
[1742178137828,0.00787815,1904.2,1904.1,4.25824]
[1742178138024,0.00787815,1904.2,1904.1,4.96564]
[1742178138431,0.00787815,1904.2,1904.1,47.16704]
[1742178138629,0.00787815,1904.2,1904.1,49.66704]
[1742178138829,0.00787815,1904.2,1904.1,50.32720197]
[1742178139528,0.00787815,1904.2,1904.1,49.66704]
[1742178140530,0.00787815,1904.2,1904.1,47.16704]
[1742178141725,0.00787815,1904.2,1904.1,49.66704]
[1742178143229,0.00787815,1904.2,1904.1,47.16704]
[1742178143724,0.00787815,1904.2,1904.1,49.66704]
[1742178143725,0.00027815,1904.2,1904.1,49.66704]
[1742178144033,0.00027815,1904.2,1904.1,55.66704]
[1742178144224,0.00027815,1904.2,1904.1,56.32614785]
[1742178148131,0.00027815,1904.2,1904.1,59.73514785]
[1742178152635,0.00027815,1904.2,1904.1,53.82614785]
[1742178159340,0.00027815,1904.2,1904.1,47.82614785]
[1742178161440,2.62439,1905.4,1904.1,46.77570785]
[1742178161739,33.38577,1905.0,1904.9,1.05]
[1742178161941,35.7438,1905.0,1904.9,1.05]
[1742178162133,35.7438,1905.0,1904.9,41.85]
[1742178162336,36.79375,1905.0,1904.9,41.85]
[1742178162639,30.17795,1905.0,1904.9,41.85]
[1742178162847,33.58595,1905.0,1904.9,41.85]
[1742178163035,32.536,1905.0,1904.9,41.85]
[1742178163231,29.128,1905.0,1904.9,41.85]
[1742178163435,32.536,1905.0,1904.9,41.85]
[1742178163842,33.58595,1905.0,1904.9,41.85]
[1742178164242,33.58595,1905.0,1904.9,40.8]
[1742178164845,34.95025,1905.0,1904.9,40.8]
[1742178165439,37.45025,1905.0,1904.9,40.8]
[1742178166843,34.95025,1905.0,1904.9,40.8]
[1742178167241,37.45025,1905.0,1904.9,40.8]
[1742178167944,34.95025,1905.0,1904.9,40.8]
[1742178169150,31.54225,1905.0,1904.9,40.8]
[1742178169356,33.9003,1905.0,1904.9,41.85]
[1742178169554,34.95025,1905.0,1904.9,41.85]
[1742178169854,34.95025,1905.0,1904.9,40.8]
[1742178172357,33.9003,1905.0,1904.9,40.8]
[1742178172659,34.95025,1905.0,1904.9,40.8]
[1742178173954,33.9003,1905.0,1904.9,41.85]
[1742178174144,34.95025,1905.0,1904.9,40.8]
[1742178174349,34.95025,1905.0,1904.9,41.85]
[1742178174544,34.95025,1905.0,1904.9,40.8]
[1742178174760,33.9003,1905.0,1904.9,40.8]
[1742178174950,33.9003,1905.0,1904.9,41.85]
[1742178175354,33.9003,1905.0,1904.9,40.8]
[1742178175560,34.95025,1905.0,1904.9,40.8]
[1742178175760,33.9003,1905.0,1904.9,40.8]
[1742178176058,34.95025,1905.0,1904.9,40.8]
[1742178181262,35.8254733,1905.0,1904.9,40.8]
[1742178182362,6.6974733,1905.0,1904.9,40.8]
[1742178185868,6.6974733,1905.0,1904.9,42.2157]
[1742178186773,3.2894733,1905.0,1904.9,42.2157]
[1742178186969,5.82125,1905.0,1904.9,42.9201]
[1742178187269,6.6964464,1905.0,1904.9,42.9201]
[1742178187470,5.82125,1905.0,1904.9,42.9201]
[1742178187767,6.69645117,1905.0,1904.9,42.9201]
[1742178188258,5.82125,1905.0,1904.9,42.9201]
[1742178188467,5.82125,1905.0,1904.9,42.2157]
[1742178190371,3.407,1905.0,1904.9,43.2657]
[1742178190568,3.2078,1905.1,1905.0,1.04995]
[1742178190870,6.6148,1905.1,1905.0,3.09765]
[1742178191072,3.407,1905.1,1905.0,3.09765]
[1742178193175,36.74866,1905.2,1905.0,3.09765]
[1742178193373,3.407,1905.1,1905.0,1.74355]
[1742178194169,4.45689,1905.1,1905.0,0.6936]
[1742178194468,3.407,1905.1,1904.9,41.84996]
[1742178194666,5.77919,1905.1,1905.0,1.04995]
[1742178195977,5.77919,1905.1,1904.9,41.84996]
[1742178196473,29.118,1905.2,1904.9,44.0078]
[1742178196675,29.118,1905.2,1905.1,1.04989]
[1742178196971,6.96451,1905.5,1905.3,1.04977]
[1742178197170,3.407,1905.4,1905.3,1.04977]
[1742178199179,3.2078,1905.5,1905.4,1.04973]
[1742178199374,6.6148,1905.5,1905.4,1.04973]
[1742178200673,6.6148,1905.5,1905.4,41.84973]
[1742178201076,3.407,1905.5,1905.4,41.84973]
[1742178202175,1.4175,1905.6,1905.5,1.04967]
[1742178202374,4.8235,1905.6,1905.5,1.04967]
[1742178203178,5.87312,1905.6,1905.5,1.04967]
[1742178203477,4.8235,1905.6,1905.5,1.04967]
[1742178204779,3.406,1905.6,1905.5,1.04967]
[1742178207581,4.7523,1905.6,1905.5,1.04967]
[1742178207877,2.39592,1905.6,1905.4,41.84968]
[1742178208083,1.3463,1905.5,1905.4,40.8]
[1742178208285,2.39597,1905.5,1905.4,40.8]
[1742178208682,5.60377,1905.5,1905.4,40.8]
[1742178212986,7.17837,1905.5,1905.0,0.6926]
[1742178213290,1.04988,1905.2,1905.1,1.4409]
[1742178213476,4.45588,1905.2,1905.1,1.4409]
[1742178213682,5.90528,1905.2,1905.1,1.4409]
[1742178213884,5.90528,1905.2,1905.1,42.2409]
[1742178216289,4.8554,1905.2,1905.1,42.2409]
[1742178216490,4.8554,1905.2,1905.1,43.29079]
[1742178216695,5.90524,1905.2,1905.1,42.2409]
[1742178217699,5.90524,1905.2,1905.1,43.29079]
[1742178217903,5.90524,1905.2,1905.1,42.2409]
[1742178220103,2.49924,1905.2,1905.1,42.2409]
[1742178220298,5.90524,1905.2,1905.1,42.2409]
[1742178220494,4.8554,1905.2,1905.1,43.29079]
[1742178220708,5.90524,1905.2,1905.1,42.2409]
[1742178221804,4.8554,1905.2,1905.1,42.2409]
[1742178222204,3.406,1905.2,1905.1,43.29079]
[1742178222407,1.3912,1905.4,1905.3,1.04978]
[1742178222408,0.7248,1905.4,1905.3,1.04978]
[1742178222602,4.1308,1905.4,1905.3,1.04978]
[1742178222803,3.406,1905.4,1905.3,1.04978]
[1742178223004,3.406,1905.4,1905.3,2.44108]
[1742178223507,4.5639,1905.5,1905.3,2.44108]
[1742178223508,3.2078,1905.5,1905.4,1.04973]
[1742178223713,6.6138,1905.5,1905.4,2.46813]
[1742178224403,6.6138,1905.5,1905.4,43.26813]
[1742178224801,2.486,1905.7,1905.4,42.2184]
[1742178225005,3.406,1905.6,1905.5,3.16193]
[1742178225212,3.406,1905.6,1905.5,1.74353]
[1742178225814,2.486,1905.7,1905.5,1.74353]
[1742178226015,2.486,1905.7,1905.6,0.7194]
[1742178226220,5.891,1905.7,1905.6,0.7194]
[1742178226815,1.04963,1905.6,1905.4,41.84969]
[1742178227013,0.6842,1905.5,1905.4,41.84969]
[1742178229311,4.45459,1905.7,1905.5,1.04967]
[1742178229718,5.87799,1905.7,1905.5,1.04967]
[1742178229909,1.4234,1905.6,1905.5,1.04967]
[1742178231218,2.47303,1905.6,1905.4,41.84968]
[1742178231413,1.4234,1905.6,1905.4,41.84968]
[1742178231616,4.4546,1905.7,1905.5,1.04967]
[1742178232421,3.405,1905.7,1905.6,1.04962]
[1742178232619,3.405,1905.7,1905.5,1.73033]
[1742178232820,3.405,1905.7,1905.6,0.6926]
[1742178233513,4.45456,1905.7,1905.6,0.6926]
[1742178234523,33.0348,1905.8,1905.6,1.74222]
[1742178234524,30.87653,1905.8,1905.6,1.74222]
[1742178234826,3.405,1905.7,1905.6,1.74222]
[1742178237317,29.117,1905.8,1905.7,1.04956]
[1742178237924,32.522,1905.8,1905.7,1.04956]
[1742178238420,1.04947,1905.9,1905.8,1.04951]
[1742178238723,3.405,1905.9,1905.8,1.04951]
[1742178239923,1.04938,1906.1,1905.7,2.6239]
[1742178240121,3.405,1905.9,1905.8,1.04951]
[1742178240324,3.405,1905.9,1905.8,3.10101]